[Event "Titled Tuesday Blitz August 24 2021"]
[White "Gontcharov, Vladislav"]
[Black "Postny, Evgeny"]
[WhiteFideId "4123492"]
[BlackFideId "2804344"]
[WhiteElo "2534"]
[BlackElo "2766"]
[Result "1-0"]
[Round "03"]
[TimeControl "180+1"]
[Date "2021.08.24"]
[WhiteClock "0:00:10"]
[BlackClock "0:00:02"]

1. e4 {[%clk 0:03:00]}  c6 {[%clk 0:02:59]} 2. d4 {[%clk 0:02:59]}  d5 {[%clk 0:02:59]} 3. Nc3 {[%clk 0:02:59]}  dxe4 {[%clk 0:02:58]} 4. Nxe4 {[%clk 0:02:59]}  Nf6 {[%clk 0:02:58]} 5. Nxf6+ {[%clk 0:02:59]}  exf6 {[%clk 0:02:59]} 6. c3 {[%clk 0:02:59]}  Bd6 {[%clk 0:02:59]} 7. Bd3 {[%clk 0:03:00]}  O-O {[%clk 0:02:58]} 8. Ne2 {[%clk 0:03:00]}  h5 {[%clk 0:02:57]} 9. Qc2 {[%clk 0:02:59]}  Re8 {[%clk 0:02:52]} 10. h3 {[%clk 0:02:58]}  Nd7 {[%clk 0:02:47]} 11. O-O {[%clk 0:02:57]}  Qc7 {[%clk 0:02:44]} 12. c4 {[%clk 0:02:56]}  Nf8 {[%clk 0:02:43]} 13. c5 {[%clk 0:02:51]}  Be7 {[%clk 0:02:43]} 14. Bf4 {[%clk 0:02:50]}  Qd8 {[%clk 0:02:43]} 15. Rad1 {[%clk 0:02:47]}  Ne6 {[%clk 0:02:40]} 16. Bg3 {[%clk 0:02:47]}  g6 {[%clk 0:02:34]} 17. Bc4 {[%clk 0:02:17]}  f5 {[%clk 0:02:24]} 18. b4 {[%clk 0:02:13]}  Nc7 {[%clk 0:02:09]} 19. Bxc7 {[%clk 0:01:54]}  Qxc7 {[%clk 0:02:10]} 20. d5 {[%clk 0:01:54]}  cxd5 {[%clk 0:02:09]} 21. Bxd5 {[%clk 0:01:54]}  Bf6 {[%clk 0:01:58]} 22. Nc3 {[%clk 0:01:47]}  Qf4 {[%clk 0:01:42]} 23. Qb3 {[%clk 0:01:34]}  Be6 {[%clk 0:01:38]} 24. Bxe6 {[%clk 0:01:31]}  Rxe6 {[%clk 0:01:39]} 25. Nd5 {[%clk 0:01:30]}  Qb8 {[%clk 0:01:29]} 26. Rfe1 {[%clk 0:01:28]}  Bg7 {[%clk 0:01:21]} 27. Ne7+ {[%clk 0:01:23]}  Kh7 {[%clk 0:01:17]} 28. Rxe6 {[%clk 0:01:23]}  fxe6 {[%clk 0:01:18]} 29. Qxe6 {[%clk 0:01:23]}  Qe8 {[%clk 0:01:19]} 30. Rd7 {[%clk 0:01:20]}  a5 {[%clk 0:01:13]} 31. b5 {[%clk 0:01:18]}  Rc8 {[%clk 0:01:11]} 32. c6 {[%clk 0:01:15]}  bxc6 {[%clk 0:01:11]} 33. bxc6 {[%clk 0:01:15]}  Rb8 {[%clk 0:01:11]} 34. g3 {[%clk 0:01:11]}  Rb1+ {[%clk 0:00:58]} 35. Kg2 {[%clk 0:01:10]}  h4 {[%clk 0:00:57]} 36. gxh4 {[%clk 0:00:57]}  f4 {[%clk 0:00:32]} 37. h5 {[%clk 0:00:53]}  f3+ {[%clk 0:00:32]} 38. Kh2 {[%clk 0:00:52]}  Qf8 {[%clk 0:00:20]} 39. hxg6+ {[%clk 0:00:26]}  Kh8 {[%clk 0:00:17]} 40. Nf5 {[%clk 0:00:23]}  Rb2 {[%clk 0:00:03]} 41. Rxg7 {[%clk 0:00:15]}  Rxf2+ {[%clk 0:00:02]} 42. Kg3 {[%clk 0:00:15]}  Qb8+ {[%clk 0:00:01]} 43. c7 {[%clk 0:00:13]}  Rg2+ {[%clk 0:00:01]} 44. Kxf3 {[%clk 0:00:13]}  Qa8+ {[%clk 0:00:02]} 45. Kf4 {[%clk 0:00:10]} 1-0


[Site "https://www.chess.com"]

[Event "Titled Tuesday Blitz August 24 2021"]
[White "Grachev, Boris"]
[Black "Amgalantengis, Enkh-Amgalan"]
[WhiteFideId "4129199"]
[BlackFideId "4903536"]
[WhiteElo "2580"]
[BlackElo "1716"]
[Result "0-1"]
[Round "03"]
[TimeControl "180+1"]
[Date "2021.08.24"]
[WhiteClock "0:00:05"]
[BlackClock "0:01:02"]

1. d4 {[%clk 0:03:00]}  Nf6 {[%clk 0:02:59]} 2. Bf4 {[%clk 0:03:01]}  d5 {[%clk 0:02:58]} 3. e3 {[%clk 0:03:01]}  e6 {[%clk 0:02:59]} 4. Nd2 {[%clk 0:03:01]}  Bd6 {[%clk 0:02:59]} 5. Ngf3 {[%clk 0:03:01]}  c5 {[%clk 0:02:59]} 6. Bb5+ {[%clk 0:02:55]}  Nc6 {[%clk 0:02:57]} 7. c3 {[%clk 0:02:55]}  O-O {[%clk 0:02:53]} 8. Bg3 {[%clk 0:02:53]}  Qe7 {[%clk 0:02:52]} 9. Bxc6 {[%clk 0:02:52]}  bxc6 {[%clk 0:02:52]} 10. Qa4 {[%clk 0:02:52]}  Bxg3 {[%clk 0:02:31]} 11. hxg3 {[%clk 0:02:50]}  cxd4 {[%clk 0:02:31]} 12. cxd4 {[%clk 0:02:45]}  Bd7 {[%clk 0:02:28]} 13. Qc2 {[%clk 0:02:38]}  Rfc8 {[%clk 0:02:26]} 14. Rc1 {[%clk 0:02:34]}  a5 {[%clk 0:02:25]} 15. g4 {[%clk 0:02:27]}  g6 {[%clk 0:02:21]} 16. g5 {[%clk 0:02:27]}  Ne8 {[%clk 0:02:19]} 17. Nb3 {[%clk 0:02:20]}  Nd6 {[%clk 0:02:13]} 18. Nc5 {[%clk 0:02:19]}  Be8 {[%clk 0:02:12]} 19. O-O {[%clk 0:02:12]}  Rcb8 {[%clk 0:02:09]} 20. b3 {[%clk 0:02:11]}  Nb7 {[%clk 0:02:04]} 21. Nd3 {[%clk 0:02:07]}  a4 {[%clk 0:02:03]} 22. Nde5 {[%clk 0:02:04]}  axb3 {[%clk 0:02:02]} 23. axb3 {[%clk 0:02:05]}  Nd6 {[%clk 0:02:02]} 24. Ra1 {[%clk 0:01:37]}  Rxa1 {[%clk 0:01:59]} 25. Rxa1 {[%clk 0:01:36]}  Ne4 {[%clk 0:02:00]} 26. Nxc6 {[%clk 0:01:26]}  Bxc6 {[%clk 0:01:59]} 27. Qxc6 {[%clk 0:01:27]}  Nxg5 {[%clk 0:02:00]} 28. Nxg5 {[%clk 0:01:24]}  Qxg5 {[%clk 0:02:01]} 29. Ra8 {[%clk 0:01:24]}  Rxa8 {[%clk 0:02:01]} 30. Qxa8+ {[%clk 0:01:23]}  Kg7 {[%clk 0:02:01]} 31. Qb8 {[%clk 0:01:21]}  Qg4 {[%clk 0:01:58]} 32. g3 {[%clk 0:00:53]}  h5 {[%clk 0:01:55]} 33. b4 {[%clk 0:00:52]}  h4 {[%clk 0:01:50]} 34. b5 {[%clk 0:00:46]}  h3 {[%clk 0:01:46]} 35. Qe5+ {[%clk 0:00:38]}  Kg8 {[%clk 0:01:44]} 36. Qb8+ {[%clk 0:00:37]}  Kg7 {[%clk 0:01:44]} 37. Kh2 {[%clk 0:00:26]}  Qd1 {[%clk 0:01:35]} 38. Qe5+ {[%clk 0:00:17]}  Kg8 {[%clk 0:01:31]} 39. Kxh3 {[%clk 0:00:17]}  Qf1+ {[%clk 0:01:29]} 40. Kh4 {[%clk 0:00:15]}  Qxb5 {[%clk 0:01:29]} 41. Kg5 {[%clk 0:00:15]}  Qe8 {[%clk 0:01:25]} 42. Qf6 {[%clk 0:00:10]}  Qf8 {[%clk 0:01:24]} 43. g4 {[%clk 0:00:08]}  Qa3 {[%clk 0:01:23]} 44. Kh6 {[%clk 0:00:06]}  Qf8+ {[%clk 0:01:23]} 45. Kg5 {[%clk 0:00:06]}  Qd6 {[%clk 0:01:22]} 46. f4 {[%clk 0:00:05]}  Qf8 {[%clk 0:01:21]} 47. Kh4 {[%clk 0:00:04]}  Qb4 {[%clk 0:01:20]} 48. Kg5 {[%clk 0:00:03]}  Qd6 {[%clk 0:01:03]} 49. f5 {[%clk 0:00:03]}  gxf5 {[%clk 0:01:03]} 50. gxf5 {[%clk 0:00:03]}  Qg3+ {[%clk 0:01:04]} 51. Kh5 {[%clk 0:00:03]}  Qh3+ {[%clk 0:01:03]} 52. Qh4 {[%clk 0:00:03]}  Qxf5+ {[%clk 0:01:02]} 53. Qg5+ {[%clk 0:00:03]}  Qxg5+ {[%clk 0:01:01]} 54. Kxg5 {[%clk 0:00:04]}  Kg7 {[%clk 0:01:02]} 55. Kg4 {[%clk 0:00:04]}  f6 {[%clk 0:01:02]} 56. Kh5 {[%clk 0:00:03]}  Kh7 {[%clk 0:01:00]} 57. Kh4 {[%clk 0:00:02]}  Kh6 {[%clk 0:01:00]} 58. Kg4 {[%clk 0:00:02]}  Kg6 {[%clk 0:01:00]} 59. Kf4 {[%clk 0:00:03]}  Kh5 {[%clk 0:01:00]} 60. e4 {[%clk 0:00:03]}  dxe4 {[%clk 0:01:01]} 61. Kxe4 {[%clk 0:00:03]}  Kg4 {[%clk 0:01:01]} 62. d5 {[%clk 0:00:02]}  exd5+ {[%clk 0:01:01]} 63. Kxd5 {[%clk 0:00:03]}  f5 {[%clk 0:01:01]} 64. Kd4 {[%clk 0:00:04]}  f4 {[%clk 0:01:02]} 65. Kd3 {[%clk 0:00:05]}  Kg3 {[%clk 0:01:02]} 66. Ke2 {[%clk 0:00:05]}  Kg2 {[%clk 0:01:02]} 0-1


[Site "https://www.chess.com"]

[Event "Titled Tuesday Blitz August 24 2021"]
[White "Ibadov, Dashgyn"]
[Black "Molina, Roberto Junio Brito"]
[WhiteFideId "24107514"]
[BlackFideId "2109450"]
[WhiteElo "2102"]
[BlackElo "2402"]
[Result "0-1"]
[Round "03"]
[TimeControl "180+1"]
[Date "2021.08.24"]
[WhiteClock "0:00:03"]
[BlackClock "0:00:16"]

1. e4 {[%clk 0:02:55]}  c6 {[%clk 0:02:58]} 2. d4 {[%clk 0:02:52]}  d5 {[%clk 0:02:59]} 3. Nc3 {[%clk 0:02:52]}  dxe4 {[%clk 0:02:58]} 4. Nxe4 {[%clk 0:02:53]}  Nd7 {[%clk 0:02:58]} 5. Nf3 {[%clk 0:02:52]}  Ngf6 {[%clk 0:02:58]} 6. Bd3 {[%clk 0:02:51]}  Nxe4 {[%clk 0:02:58]} 7. Bxe4 {[%clk 0:02:51]}  Nf6 {[%clk 0:02:59]} 8. Bd3 {[%clk 0:02:52]}  Bg4 {[%clk 0:02:58]} 9. c3 {[%clk 0:02:51]}  e6 {[%clk 0:02:58]} 10. O-O {[%clk 0:02:50]}  Bd6 {[%clk 0:02:58]} 11. h3 {[%clk 0:02:50]}  Bh5 {[%clk 0:02:57]} 12. Re1 {[%clk 0:02:48]}  O-O {[%clk 0:02:56]} 13. g4 {[%clk 0:02:13]}  Bg6 {[%clk 0:02:55]} 14. Bf1 {[%clk 0:02:14]}  Qc7 {[%clk 0:02:50]} 15. Ne5 {[%clk 0:02:07]}  Rad8 {[%clk 0:02:24]} 16. Qf3 {[%clk 0:01:57]}  c5 {[%clk 0:02:22]} 17. Be3 {[%clk 0:01:55]}  Nd5 {[%clk 0:02:20]} 18. Nxg6 {[%clk 0:01:47]}  hxg6 {[%clk 0:02:17]} 19. dxc5 {[%clk 0:01:44]}  Bxc5 {[%clk 0:02:11]} 20. Bxc5 {[%clk 0:01:44]}  Qxc5 {[%clk 0:02:11]} 21. Bg2 {[%clk 0:01:45]}  b5 {[%clk 0:02:05]} 22. Rad1 {[%clk 0:01:40]}  Nf6 {[%clk 0:02:01]} 23. Qc6 {[%clk 0:01:35]}  Qxc6 {[%clk 0:01:59]} 24. Bxc6 {[%clk 0:01:36]}  a6 {[%clk 0:01:58]} 25. f4 {[%clk 0:01:33]}  Rb8 {[%clk 0:01:42]} 26. Rd4 {[%clk 0:01:22]}  Rfc8 {[%clk 0:01:40]} 27. Bf3 {[%clk 0:01:19]}  Rd8 {[%clk 0:01:35]} 28. Red1 {[%clk 0:01:18]}  Rxd4 {[%clk 0:01:35]} 29. Rxd4 {[%clk 0:01:19]}  Kf8 {[%clk 0:01:35]} 30. Kf2 {[%clk 0:01:18]}  Ke7 {[%clk 0:01:35]} 31. Bc6 {[%clk 0:00:53]}  Rb6 {[%clk 0:01:34]} 32. Bf3 {[%clk 0:00:51]}  Ne8 {[%clk 0:01:27]} 33. b3 {[%clk 0:00:42]}  Nd6 {[%clk 0:01:22]} 34. Ke3 {[%clk 0:00:36]}  Rb8 {[%clk 0:01:22]} 35. Be2 {[%clk 0:00:31]}  Rc8 {[%clk 0:01:22]} 36. c4 {[%clk 0:00:28]}  bxc4 {[%clk 0:01:21]} 37. Bxc4 {[%clk 0:00:29]}  a5 {[%clk 0:01:19]} 38. Be2 {[%clk 0:00:26]}  Rc5 {[%clk 0:01:15]} 39. Kd2 {[%clk 0:00:23]}  e5 {[%clk 0:01:11]} 40. fxe5 {[%clk 0:00:19]}  Rxe5 {[%clk 0:01:12]} 41. b4 {[%clk 0:00:16]}  axb4 {[%clk 0:01:10]} 42. Rxb4 {[%clk 0:00:16]}  Ra5 {[%clk 0:01:08]} 43. a4 {[%clk 0:00:16]}  f5 {[%clk 0:01:05]} 44. Bb5 {[%clk 0:00:13]}  Kf6 {[%clk 0:01:02]} 45. Ke3 {[%clk 0:00:12]}  Ke5 {[%clk 0:01:02]} 46. Kf3 {[%clk 0:00:07]}  Ne4 {[%clk 0:00:58]} 47. Rb2 {[%clk 0:00:04]}  Ng5+ {[%clk 0:00:50]} 48. Kg3 {[%clk 0:00:03]}  f4+ {[%clk 0:00:49]} 49. Kg2 {[%clk 0:00:04]}  Ne4 {[%clk 0:00:41]} 50. Kf3 {[%clk 0:00:03]}  Nc3 {[%clk 0:00:28]} 51. Rc2 {[%clk 0:00:03]}  Nxa4 {[%clk 0:00:24]} 52. Bxa4 {[%clk 0:00:02]}  Rxa4 {[%clk 0:00:25]} 53. Rc5+ {[%clk 0:00:02]}  Kf6 {[%clk 0:00:25]} 54. g5+ {[%clk 0:00:02]}  Ke6 {[%clk 0:00:26]} 55. h4 {[%clk 0:00:02]}  Kf7 {[%clk 0:00:24]} 56. Kg4 {[%clk 0:00:02]}  f3+ {[%clk 0:00:23]} 57. Kxf3 {[%clk 0:00:02]}  Rxh4 {[%clk 0:00:23]} 58. Kg3 {[%clk 0:00:03]}  Re4 {[%clk 0:00:23]} 59. Kf3 {[%clk 0:00:03]}  Rd4 {[%clk 0:00:23]} 60. Ke3 {[%clk 0:00:03]}  Ra4 {[%clk 0:00:22]} 61. Kf3 {[%clk 0:00:03]}  Ke6 {[%clk 0:00:22]} 62. Kg3 {[%clk 0:00:04]}  Re4 {[%clk 0:00:22]} 63. Rb5 {[%clk 0:00:04]}  Re5 {[%clk 0:00:21]} 64. Rb7 {[%clk 0:00:05]}  Rxg5+ {[%clk 0:00:19]} 65. Kf4 {[%clk 0:00:05]}  Rf5+ {[%clk 0:00:20]} 66. Kg4 {[%clk 0:00:06]}  Kf6 {[%clk 0:00:19]} 67. Rb6+ {[%clk 0:00:05]}  Kf7 {[%clk 0:00:20]} 68. Rb8 {[%clk 0:00:04]}  Re5 {[%clk 0:00:19]} 69. Rb7+ {[%clk 0:00:04]}  Kg8 {[%clk 0:00:19]} 70. Rb6 {[%clk 0:00:04]}  Kh7 {[%clk 0:00:19]} 71. Ra6 {[%clk 0:00:05]}  Kh6 {[%clk 0:00:19]} 72. Rb6 {[%clk 0:00:05]}  Re4+ {[%clk 0:00:19]} 73. Kf3 {[%clk 0:00:06]}  Ra4 {[%clk 0:00:20]} 74. Kg3 {[%clk 0:00:06]}  Kh5 {[%clk 0:00:20]} 75. Rb5+ {[%clk 0:00:06]}  g5 {[%clk 0:00:20]} 76. Rb7 {[%clk 0:00:07]}  Ra3+ {[%clk 0:00:19]} 77. Kg2 {[%clk 0:00:06]}  g6 {[%clk 0:00:20]} 78. Rb4 {[%clk 0:00:06]}  g4 {[%clk 0:00:20]} 79. Kh2 {[%clk 0:00:06]}  Kh4 {[%clk 0:00:20]} 80. Rb7 {[%clk 0:00:06]}  Ra2+ {[%clk 0:00:19]} 81. Kg1 {[%clk 0:00:06]}  Kh3 {[%clk 0:00:19]} 82. Rb3+ {[%clk 0:00:03]}  g3 {[%clk 0:00:19]} 83. Rb1 {[%clk 0:00:04]}  Kg4 {[%clk 0:00:13]} 84. Rb4+ {[%clk 0:00:03]}  Kg5 {[%clk 0:00:14]} 85. Rb5+ {[%clk 0:00:03]}  Kh4 {[%clk 0:00:14]} 86. Rb4+ {[%clk 0:00:03]}  Kh5 {[%clk 0:00:14]} 87. Rc4 {[%clk 0:00:03]}  g5 {[%clk 0:00:13]} 88. Rd4 {[%clk 0:00:03]}  Rf2 {[%clk 0:00:12]} 89. Rc4 {[%clk 0:00:04]}  Rf4 {[%clk 0:00:13]} 90. Rc3 {[%clk 0:00:03]}  Kg4 {[%clk 0:00:14]} 91. Kg2 {[%clk 0:00:03]}  Rf2+ {[%clk 0:00:14]} 92. Kg1 {[%clk 0:00:04]}  Rf3 {[%clk 0:00:15]} 93. Rc4+ {[%clk 0:00:03]}  Kh3 {[%clk 0:00:15]} 94. Rc1 {[%clk 0:00:04]}  g2 {[%clk 0:00:15]} 95. Rb1 {[%clk 0:00:01]}  Rf1+ {[%clk 0:00:14]} 96. Rxf1 {[%clk 0:00:02]}  gxf1=Q+ {[%clk 0:00:15]} 97. Kxf1 {[%clk 0:00:03]}  Kh2 {[%clk 0:00:16]} 0-1


[Site "https://www.chess.com"]

[Event "Titled Tuesday Blitz August 24 2021"]
[White "Ibarra Jerez, Jose Carlos"]
[Black "Kim, Sergey"]
[WhiteFideId "2226332"]
[BlackFideId "13700570"]
[WhiteElo "2602"]
[BlackElo "2473"]
[Result "1-0"]
[Round "03"]
[TimeControl "180+1"]
[Date "2021.08.24"]
[WhiteClock "0:00:50"]
[BlackClock "0:00:09"]

1. e4 {[%clk 0:03:00]}  e5 {[%clk 0:02:59]} 2. Nf3 {[%clk 0:03:00]}  Nc6 {[%clk 0:02:59]} 3. d4 {[%clk 0:02:59]}  exd4 {[%clk 0:02:59]} 4. Nxd4 {[%clk 0:02:58]}  Bc5 {[%clk 0:02:59]} 5. Nb3 {[%clk 0:02:57]}  Bb6 {[%clk 0:02:58]} 6. Qe2 {[%clk 0:02:57]}  d6 {[%clk 0:02:58]} 7. Nc3 {[%clk 0:02:57]}  Nf6 {[%clk 0:02:57]} 8. Be3 {[%clk 0:02:56]}  Be6 {[%clk 0:02:56]} 9. O-O-O {[%clk 0:02:55]}  Qe7 {[%clk 0:02:56]} 10. g3 {[%clk 0:02:49]}  O-O-O {[%clk 0:02:53]} 11. Bg2 {[%clk 0:02:49]}  Rhe8 {[%clk 0:02:53]} 12. Bxb6 {[%clk 0:02:43]}  axb6 {[%clk 0:02:52]} 13. Rhe1 {[%clk 0:02:40]}  Kb8 {[%clk 0:02:47]} 14. h3 {[%clk 0:02:37]}  Qd7 {[%clk 0:02:36]} 15. g4 {[%clk 0:02:28]}  g5 {[%clk 0:02:33]} 16. Qf3 {[%clk 0:02:09]}  Qe7 {[%clk 0:02:26]} 17. Nd4 {[%clk 0:01:54]}  Nxd4 {[%clk 0:02:19]} 18. Rxd4 {[%clk 0:01:53]}  Nd7 {[%clk 0:02:18]} 19. Nb5 {[%clk 0:01:40]}  Nc5 {[%clk 0:01:55]} 20. Qa3 {[%clk 0:01:35]}  Na6 {[%clk 0:01:54]} 21. Ra4 {[%clk 0:01:16]}  Bd7 {[%clk 0:01:50]} 22. Bf1 {[%clk 0:01:08]}  Qe5 {[%clk 0:01:40]} 23. Rxa6 {[%clk 0:01:00]}  bxa6 {[%clk 0:01:39]} 24. Qxa6 {[%clk 0:01:01]}  Bxb5 {[%clk 0:01:32]} 25. Bxb5 {[%clk 0:01:00]}  Qf4+ {[%clk 0:01:33]} 26. Kb1 {[%clk 0:00:58]}  Rxe4 {[%clk 0:01:05]} 27. Rc1 {[%clk 0:00:57]}  Rde8 {[%clk 0:00:09]} 28. Bc6 {[%clk 0:00:50]} 1-0


[Site "https://www.chess.com"]

[Event "Titled Tuesday Blitz August 24 2021"]
[White "Ivanchuk, Vasyl"]
[Black "Aggelis, Nikolaos"]
[WhiteFideId "14100010"]
[BlackFideId "4213220"]
[WhiteElo "2710"]
[BlackElo "2154"]
[Result "1-0"]
[Round "03"]
[TimeControl "180+1"]
[Date "2021.08.24"]
[WhiteClock "0:00:15"]
[BlackClock "0:00:01"]

1. e4 {[%clk 0:03:00]}  e5 {[%clk 0:02:57]} 2. Nf3 {[%clk 0:03:00]}  Nc6 {[%clk 0:02:57]} 3. Bb5 {[%clk 0:03:00]}  a6 {[%clk 0:02:48]} 4. Ba4 {[%clk 0:03:00]}  Nf6 {[%clk 0:02:48]} 5. O-O {[%clk 0:03:00]}  Be7 {[%clk 0:02:46]} 6. Re1 {[%clk 0:03:00]}  b5 {[%clk 0:02:46]} 7. Bb3 {[%clk 0:03:00]}  O-O {[%clk 0:02:46]} 8. h3 {[%clk 0:02:59]}  d5 {[%clk 0:02:46]} 9. exd5 {[%clk 0:02:58]}  Nxd5 {[%clk 0:02:47]} 10. Nxe5 {[%clk 0:02:58]}  Nxe5 {[%clk 0:02:46]} 11. Rxe5 {[%clk 0:02:58]}  Nb6 {[%clk 0:02:45]} 12. d3 {[%clk 0:02:54]}  c5 {[%clk 0:02:36]} 13. c3 {[%clk 0:02:30]}  Bd6 {[%clk 0:02:35]} 14. Re1 {[%clk 0:02:29]}  Bc7 {[%clk 0:02:35]} 15. Be3 {[%clk 0:02:14]}  Qd6 {[%clk 0:02:31]} 16. g3 {[%clk 0:02:14]}  Bb7 {[%clk 0:02:31]} 17. Nd2 {[%clk 0:02:12]}  Qc6 {[%clk 0:02:28]} 18. Ne4 {[%clk 0:01:54]}  c4 {[%clk 0:02:28]} 19. Bxb6 {[%clk 0:01:53]}  Bxb6 {[%clk 0:02:27]} 20. dxc4 {[%clk 0:01:53]}  bxc4 {[%clk 0:02:27]} 21. Ba4 {[%clk 0:01:52]}  Qg6 {[%clk 0:02:12]} 22. Qg4 {[%clk 0:01:47]}  Qxg4 {[%clk 0:01:34]} 23. hxg4 {[%clk 0:01:46]}  Bxe4 {[%clk 0:01:35]} 24. Rxe4 {[%clk 0:01:45]}  Rfc8 {[%clk 0:01:36]} 25. Rd1 {[%clk 0:01:38]}  Ra7 {[%clk 0:01:22]} 26. Rd6 {[%clk 0:01:32]}  Rb7 {[%clk 0:01:10]} 27. Bc6 {[%clk 0:01:30]}  Rbb8 {[%clk 0:00:55]} 28. Bd5 {[%clk 0:01:30]}  Kf8 {[%clk 0:00:16]} 29. Rd7 {[%clk 0:01:17]}  Rc7 {[%clk 0:00:16]} 30. Ree7 {[%clk 0:01:14]}  Rxd7 {[%clk 0:00:13]} 31. Rxd7 {[%clk 0:01:14]}  f6 {[%clk 0:00:13]} 32. Rf7+ {[%clk 0:01:12]}  Ke8 {[%clk 0:00:12]} 33. Rxg7 {[%clk 0:01:12]}  Bc5 {[%clk 0:00:13]} 34. b4 {[%clk 0:01:02]}  cxb3 {[%clk 0:00:12]} 35. Bxb3 {[%clk 0:01:00]}  h6 {[%clk 0:00:13]} 36. Rg6 {[%clk 0:00:58]}  Be7 {[%clk 0:00:11]} 37. Rxh6 {[%clk 0:00:56]}  Kd7 {[%clk 0:00:11]} 38. Rh5 {[%clk 0:00:55]}  Rc8 {[%clk 0:00:10]} 39. Ra5 {[%clk 0:00:54]}  Rxc3 {[%clk 0:00:10]} 40. Rxa6 {[%clk 0:00:53]}  Rd3 {[%clk 0:00:10]} 41. Kg2 {[%clk 0:00:49]}  Rd2 {[%clk 0:00:11]} 42. Ra5 {[%clk 0:00:43]}  Kc6 {[%clk 0:00:10]} 43. Rf5 {[%clk 0:00:41]}  Rb2 {[%clk 0:00:09]} 44. Bf7 {[%clk 0:00:38]}  Kd6 {[%clk 0:00:09]} 45. a4 {[%clk 0:00:37]}  Kd7 {[%clk 0:00:04]} 46. a5 {[%clk 0:00:36]}  Kc6 {[%clk 0:00:04]} 47. Bd5+ {[%clk 0:00:34]}  Kc5 {[%clk 0:00:04]} 48. Bb7+ {[%clk 0:00:31]}  Kb4 {[%clk 0:00:03]} 49. a6 {[%clk 0:00:31]}  Ra2 {[%clk 0:00:04]} 50. Rf4+ {[%clk 0:00:28]}  Kb5 {[%clk 0:00:03]} 51. Re4 {[%clk 0:00:25]}  Bc5 {[%clk 0:00:03]} 52. Rf4 {[%clk 0:00:26]}  Be7 {[%clk 0:00:03]} 53. Rf5+ {[%clk 0:00:25]}  Kb6 {[%clk 0:00:03]} 54. Kh3 {[%clk 0:00:25]}  Ka7 {[%clk 0:00:04]} 55. Kh4 {[%clk 0:00:24]}  Ra4 {[%clk 0:00:04]} 56. Kh5 {[%clk 0:00:24]}  Ra2 {[%clk 0:00:05]} 57. Kg6 {[%clk 0:00:23]}  Ra4 {[%clk 0:00:05]} 58. f4 {[%clk 0:00:22]}  Ra3 {[%clk 0:00:05]} 59. Kf7 {[%clk 0:00:22]}  Bd8 {[%clk 0:00:05]} 60. Ke8 {[%clk 0:00:22]}  Bc7 {[%clk 0:00:06]} 61. Rxf6 {[%clk 0:00:22]}  Rxg3 {[%clk 0:00:06]} 62. g5 {[%clk 0:00:22]}  Rf3 {[%clk 0:00:06]} 63. f5 {[%clk 0:00:21]}  Be5 {[%clk 0:00:06]} 64. Rf7 {[%clk 0:00:20]}  Re3 {[%clk 0:00:07]} 65. Kd7 {[%clk 0:00:19]}  Kb6 {[%clk 0:00:07]} 66. g6 {[%clk 0:00:18]}  Rd3+ {[%clk 0:00:07]} 67. Ke6 {[%clk 0:00:19]}  Re3 {[%clk 0:00:08]} 68. f6 {[%clk 0:00:18]}  Bc3+ {[%clk 0:00:02]} 69. Kf5 {[%clk 0:00:18]}  Rf3+ {[%clk 0:00:02]} 70. Kg5 {[%clk 0:00:18]}  Rg3+ {[%clk 0:00:02]} 71. Kh6 {[%clk 0:00:18]}  Bd2+ {[%clk 0:00:02]} 72. Kh7 {[%clk 0:00:17]}  Bc3 {[%clk 0:00:02]} 73. g7 {[%clk 0:00:16]}  Rh3+ {[%clk 0:00:01]} 74. Kg8 {[%clk 0:00:15]} 1-0


[Site "https://www.chess.com"]

[Event "Titled Tuesday Blitz August 24 2021"]
[White "Jacobson, Aaron"]
[Black "Sjugirov, Sanan"]
[WhiteFideId "2089912"]
[BlackFideId "4189302"]
[WhiteElo "2265"]
[BlackElo "2472"]
[Result "1/2-1/2"]
[Round "03"]
[TimeControl "180+1"]
[Date "2021.08.24"]
[WhiteClock "0:00:07"]
[BlackClock "0:00:06"]

1. e4 {[%clk 0:03:00]}  c5 {[%clk 0:02:59]} 2. Nf3 {[%clk 0:03:00]}  Nf6 {[%clk 0:03:00]} 3. Nc3 {[%clk 0:02:56]}  d6 {[%clk 0:02:59]} 4. d4 {[%clk 0:02:53]}  cxd4 {[%clk 0:03:00]} 5. Nxd4 {[%clk 0:02:54]}  a6 {[%clk 0:03:00]} 6. Bg5 {[%clk 0:02:48]}  Nc6 {[%clk 0:03:00]} 7. Qd2 {[%clk 0:02:34]}  Bd7 {[%clk 0:02:57]} 8. O-O-O {[%clk 0:02:32]}  e6 {[%clk 0:02:57]} 9. f4 {[%clk 0:02:32]}  Be7 {[%clk 0:02:54]} 10. Nf3 {[%clk 0:02:31]}  b5 {[%clk 0:02:53]} 11. a3 {[%clk 0:02:31]}  h6 {[%clk 0:02:20]} 12. Bh4 {[%clk 0:02:31]}  b4 {[%clk 0:02:06]} 13. axb4 {[%clk 0:02:30]}  Nxb4 {[%clk 0:02:07]} 14. Kb1 {[%clk 0:02:24]}  Rb8 {[%clk 0:02:02]} 15. e5 {[%clk 0:02:22]}  dxe5 {[%clk 0:01:59]} 16. fxe5 {[%clk 0:02:23]}  Nfd5 {[%clk 0:01:57]} 17. Bxe7 {[%clk 0:02:09]}  Qxe7 {[%clk 0:01:56]} 18. Ne4 {[%clk 0:02:07]}  O-O {[%clk 0:01:46]} 19. c4 {[%clk 0:01:25]}  Ba4 {[%clk 0:01:42]} 20. Rc1 {[%clk 0:01:18]}  Rfc8 {[%clk 0:01:22]} 21. Nd6 {[%clk 0:01:05]}  Rc5 {[%clk 0:01:18]} 22. Nd4 {[%clk 0:00:49]}  Nc7 {[%clk 0:00:45]} 23. Qe3 {[%clk 0:00:47]}  Qg5 {[%clk 0:00:36]} 24. Qxg5 {[%clk 0:00:35]}  hxg5 {[%clk 0:00:37]} 25. Re1 {[%clk 0:00:34]}  Ne8 {[%clk 0:00:26]} 26. h4 {[%clk 0:00:22]}  Nxd6 {[%clk 0:00:24]} 27. exd6 {[%clk 0:00:23]}  g4 {[%clk 0:00:21]} 28. Be2 {[%clk 0:00:22]}  Rd8 {[%clk 0:00:20]} 29. b3 {[%clk 0:00:17]}  Rxd6 {[%clk 0:00:15]} 30. Rd1 {[%clk 0:00:17]}  e5 {[%clk 0:00:03]} 31. Nf5 {[%clk 0:00:15]}  Rxd1+ {[%clk 0:00:03]} 32. Bxd1 {[%clk 0:00:15]}  Bd7 {[%clk 0:00:03]} 33. Bxg4 {[%clk 0:00:15]}  g6 {[%clk 0:00:03]} 34. Nh6+ {[%clk 0:00:14]}  Kg7 {[%clk 0:00:03]} 35. Bxd7 {[%clk 0:00:10]}  Kxh6 {[%clk 0:00:04]} 36. g4 {[%clk 0:00:09]}  Kg7 {[%clk 0:00:04]} 37. g5 {[%clk 0:00:09]}  a5 {[%clk 0:00:03]} 38. h5 {[%clk 0:00:08]}  gxh5 {[%clk 0:00:03]} 39. Bf5 {[%clk 0:00:09]}  Nc6 {[%clk 0:00:02]} 40. Rxh5 {[%clk 0:00:09]}  Nd4 {[%clk 0:00:03]} 41. Bc2 {[%clk 0:00:07]}  Nxc2 {[%clk 0:00:02]} 42. Kxc2 {[%clk 0:00:08]}  a4 {[%clk 0:00:03]} 43. Rh2 {[%clk 0:00:04]}  axb3+ {[%clk 0:00:03]} 44. Kxb3 {[%clk 0:00:05]}  e4 {[%clk 0:00:03]} 45. Rg2 {[%clk 0:00:04]}  Re5 {[%clk 0:00:03]} 46. Kc3 {[%clk 0:00:05]}  Kg6 {[%clk 0:00:03]} 47. Kd4 {[%clk 0:00:05]}  Re8 {[%clk 0:00:03]} 48. Re2 {[%clk 0:00:05]}  Kxg5 {[%clk 0:00:03]} 49. Rxe4 {[%clk 0:00:06]}  Rd8+ {[%clk 0:00:03]} 50. Ke3 {[%clk 0:00:05]}  f5 {[%clk 0:00:03]} 51. Re7 {[%clk 0:00:06]}  Ra8 {[%clk 0:00:03]} 52. c5 {[%clk 0:00:05]}  Ra3+ {[%clk 0:00:03]} 53. Kf2 {[%clk 0:00:06]}  Ra2+ {[%clk 0:00:03]} 54. Re2 {[%clk 0:00:06]}  Rxe2+ {[%clk 0:00:02]} 55. Kxe2 {[%clk 0:00:06]}  Kf6 {[%clk 0:00:03]} 56. Ke3 {[%clk 0:00:06]}  Ke6 {[%clk 0:00:04]} 57. Kf4 {[%clk 0:00:06]}  Kd5 {[%clk 0:00:04]} 58. c6 {[%clk 0:00:06]}  Kxc6 {[%clk 0:00:04]} 59. Ke5 {[%clk 0:00:07]}  Kd7 {[%clk 0:00:04]} 60. Kd5 {[%clk 0:00:06]}  Kc7 {[%clk 0:00:05]} 61. Ke5 {[%clk 0:00:07]}  Kd7 {[%clk 0:00:06]} 62. Kxf5 {[%clk 0:00:07]} 1/2-1/2


[Site "https://www.chess.com"]